[Event "35th European Club Cup 2019"]
[Site "Ulcinj"]
[Date "2019.11.15"]
[Round "6.24"]
[White "Magat, Jozef"]
[Black "Takacs, Laszlo"]
[Result "1/2-1/2"]
[ECO "A45"]
[WhiteElo "2105"]
[BlackElo "2239"]
[Annotator "NA"]
[PlyCount "136"]
[EventDate "2019.11.10"]
[EventType "team-tourn"]
[EventCountry "MNE"]
[SourceTitle "playchess.com"]
[Source "ChessBase"]
[SourceQuality "1"]
[WhiteTeam "Inbest Dunajov"]
[BlackTeam "Dunajska Streda"]
[TimeControl "40/5400+30:1800+30"]

1. d4 {[%emt 0:00:00]} Nf6 {[%emt 0:00:00]} 2. Bg5 {[%emt 0:00:02]} Ne4 {[%emt 0:00:00]} 3. Bf4 {[%emt 0:00:21]} c5 {[%emt 0:00:18]} 4. Nd2 {[%emt 0:05:31]} Nxd2 {[%emt 0:11:09]} 5. Qxd2 {[%emt 0:01:23]} Qb6 {[%emt 0:13:07]} 6. O-O-O {[%emt 0:08:58]} cxd4 {[%emt 0:00:37]} 7. Bxb8 {[%emt 0:04:34]} Rxb8 {[%emt 0:00:15]} 8. Qxd4 {[%emt 0:00:07]} Qxd4 {[%emt 0:00:34]} 9. Rxd4 {[%emt 0:00:09]} g6 {[%emt 0:00:24]} 10. e3 {[%emt 0:04:07]} Bg7 {[%emt 0:00:11]} 11. Rd2 {[%emt 0:02:27]} O-O {[%emt 0:00:45]} 12. Nf3 {[%emt 0:03:49]} d6 {[%emt 0:08:36]} 13. h4 {[%emt 0:05:44]} Bg4 {[%emt 0:04:41]} 14. Be2 {[%emt 0:03:50]} Rfc8 {[%emt 0:03:42]} 15. Nd4 {[%emt 0:04:54]} Bxe2 {[%emt 0:01:39]} 16. Rxe2 {[%emt 0:06:25]} Rc4 {[%emt 0:04:52]} 17. h5 {[%emt 0:05:15]} Rbc8 {[%emt 0:01:57]} 18. c3 {[%emt 0:04:16]} Bxd4 {[%emt 0:18:30]} 19. exd4 {[%emt 0:00:54]} e6 {[%emt 0:00:15]} 20. hxg6 {[%emt 0:01:14]} hxg6 {[%emt 0:00:07]} 21. Kd2 {[%emt 0:02:38]} b5 {[%emt 0:00:43]} 22. a3 {[%emt 0:02:51]} a5 {[%emt 0:00:08]} 23. Re3 {[%emt 0:01:57]} b4 {[%emt 0:05:31]} 24. axb4 {[%emt 0:01:26]} axb4 {[%emt 0:00:09]} 25. Ra1 {[%emt 0:00:45]} R8c7 {[%emt 0:01:00]} 26. Ra6 {[%emt 0:01:41]} d5 {[%emt 0:00:41]} 27. Rf3 {[%emt 0:05:44]} Kg7 {[%emt 0:01:20]} 28. g3 Rb7 {[%emt 0:10:44]} 29. Ra2 {[%emt 0:05:15]} Kh6 {[%emt 0:06:35]} 30. Rd3 {[%emt 0:09:50]} Kg5 {[%emt 0:00:33]} 31. f3 {[%emt 0:00:30]} bxc3+ {[%emt 0:00:30]} 32. bxc3 {[%emt 0:00:22]} Rc8 {[%emt 0:00:24]} 33. Re3 {[%emt 0:02:19]} Rb1 {[%emt 0:00:32]} 34. Rc2 {[%emt 0:04:36]} Rg1 {[%emt 0:00:50]} 35. Re5+ {[%emt 0:00:12]} Kf6 {[%emt 0:00:07]} 36. g4 {[%emt 0:00:22]} Rh8 {[%emt 0:01:12]} 37. Ke3 {[%emt 0:02:07]} Rh3 {[%emt 0:00:34]} 38. g5+ {[%emt 0:01:21]} Rxg5 {[%emt 0:01:44]} 39. Rxg5 {[%emt 0:00:19]} Kxg5 {[%emt 0:00:06]} 40. c4 dxc4 {[%emt 0:00:00]} 41. Rxc4 {[%emt 0:00:35]} Kf6 {[%emt 0:05:35]} 42. Rc1 {[%emt 0:01:56]} Rh5 {[%emt 0:01:59]} 43. Rc7 {[%emt 0:02:45]} Ra5 {[%emt 0:00:31]} 44. Ke4 {[%emt 0:01:35]} g5 {[%emt 0:01:05]} 45. Rc8 {[%emt 0:05:01]} Kg7 {[%emt 0:04:31]} 46. Rc7 {[%emt 0:00:25]} Kg6 {[%emt 0:00:14]} 47. Rc8 {[%emt 0:02:03]} f5+ {[%emt 0:01:19]} 48. Ke3 {[%emt 0:00:08]} Ra3+ {[%emt 0:00:04]} 49. Kf2 {[%emt 0:00:35]} f4 {[%emt 0:07:09]} 50. Rd8 {[%emt 0:01:38]} Ra2+ {[%emt 0:00:50]} 51. Kf1 {[%emt 0:00:29]} Ra5 {[%emt 0:00:13]} 52. Re8 {[%emt 0:03:41]} Kf7 {[%emt 0:00:48]} 53. Rb8 {[%emt 0:00:54]} Rd5 {[%emt 0:02:29]} 54. Rb4 {[%emt 0:00:24]} Kg6 {[%emt 0:01:41]} 55. Kg2 {[%emt 0:00:42]} Kf5 {[%emt 0:09:27]} 56. Kh3 {[%emt 0:00:51]} g4+ {[%emt 0:01:26]} 57. fxg4+ {[%emt 0:00:15]} Ke4 {[%emt 0:00:05]} 58. Rb6 {[%emt 0:00:41]} Kf3 {[%emt 0:01:38]} 59. Rxe6 {[%emt 0:03:34]} Rxd4 {[%emt 0:00:06]} 60. Re1 {[%emt 0:04:34]} Kf2 {[%emt 0:01:06]} 61. Ra1 {[%emt 0:00:40]} Rd3+ {[%emt 0:00:56]} 62. Kh4 {[%emt 0:00:41]} f3 {[%emt 0:00:26]} 63. g5 {[%emt 0:02:56]} Kg2 64. Kh5 f2 {[%emt 0:00:45]} 65. g6 {[%emt 0:04:01]} Rh3+ {[%emt 0:00:41]} 66. Kg5 {[%emt 0:00:10]} Rg3+ {[%emt 0:00:06]} 67. Kh6 {[%emt 0:00:22]} Kh3 {[%emt 0:00:43]} 68. Rf1 {[%emt 0:00:23]} Kg2 {[%emt 0:00:10]} 1/2-1/2

[Event "35th European Club Cup 2019"]
[Site "Ulcinj"]
[Date "2019.11.15"]
[Round "6.24"]
[White "Bikady, Claude"]
[Black "Goldstern, Filip"]
[Result "1-0"]
[ECO "A40"]
[WhiteElo "1912"]
[BlackElo "2279"]
[Annotator "NA"]
[PlyCount "75"]
[EventDate "2019.11.10"]
[EventType "team-tourn"]
[EventCountry "MNE"]
[SourceTitle "playchess.com"]
[Source "ChessBase"]
[SourceQuality "1"]
[WhiteTeam "Echiquier Mosan"]
[BlackTeam "Zurich SG"]
[TimeControl "40/5400+30:1800+30"]

1. d4 {[%emt 0:00:00]} g6 {[%emt 0:00:56]} 2. Nf3 {[%emt 0:00:00]} Bg7 {[%emt 0:00:35]} 3. Nc3 {[%emt 0:00:07]} d6 {[%emt 0:00:55]} 4. e4 {[%emt 0:03:19]} a6 {[%emt 0:00:59]} 5. Be3 {[%emt 0:00:23]} e6 {[%emt 0:00:34]} 6. a4 {[%emt 0:05:28]} b6 {[%emt 0:00:24]} 7. Qd2 {[%emt 0:03:54]} h6 {[%emt 0:01:44]} 8. Bd3 {[%emt 0:06:10]} Bb7 {[%emt 0:03:10]} 9. O-O {[%emt 0:01:38]} Nd7 {[%emt 0:01:32]} 10. d5 {[%emt 0:04:13]} e5 {[%emt 0:00:30]} 11. b4 {[%emt 0:09:44]} a5 {[%emt 0:06:36]} 12. Nb5 {[%emt 0:14:50]} axb4 {[%emt 0:01:54]} 13. Qxb4 {[%emt 0:01:56]} Rb8 {[%emt 0:15:20]} 14. Qc3 {[%emt 0:07:18]} Nc5 {[%emt 0:00:25]} 15. Bxc5 {[%emt 0:00:34]} bxc5 {[%emt 0:00:42]} 16. Na7 {[%emt 0:00:41]} Ne7 {[%emt 0:01:35]} 17. Bb5+ {[%emt 0:01:10]} Kf8 {[%emt 0:00:07]} 18. Rfb1 {[%emt 0:02:49]} f5 {[%emt 0:00:22]} 19. Nc6 {[%emt 0:09:47]} Bxc6 {[%emt 0:26:36]} 20. Bxc6 {[%emt 0:00:11]} fxe4 {[%emt 0:01:47]} 21. Nd2 {[%emt 0:00:02]} Nxc6 {[%emt 0:00:45]} 22. dxc6 {[%emt 0:00:03]} Rxb1+ {[%emt 0:00:25]} 23. Rxb1 {[%emt 0:12:49]} Qe8 {[%emt 0:00:00]} 24. Qc4 {[%emt 0:00:31]} Qxc6 {[%emt 0:00:09]} 25. Rb8+ {[%emt 0:00:04]} Ke7 {[%emt 0:00:32]} 26. Rxh8 {[%emt 0:03:13]} d5 {[%emt 0:00:30]} 27. Qb3 {[%emt 0:00:30]} Bxh8 {[%emt 0:00:16]} 28. a5 {[%emt 0:00:26]} Bf6 {[%emt 0:04:27]} 29. Qa3 {[%emt 0:01:16]} Bg5 30. Nb3 {[%emt 0:01:22]} e3 {[%emt 0:08:56]} 31. Nxc5 {[%emt 0:02:26]} e2 {[%emt 0:01:51]} 32. Nd3+ {[%emt 0:01:35]} Qd6 {[%emt 0:11:56]} 33. Qa1 {[%emt 0:03:36]} e4 {[%emt 0:00:08]} 34. Ne1 {[%emt 0:01:54]} Bd2 {[%emt 0:01:28]} 35. a6 {[%emt 0:00:24]} Qf6 {[%emt 0:06:30]} 36. Qxf6+ {[%emt 0:01:52]} Kxf6 {[%emt 0:00:02]} 37. a7 {[%emt 0:00:03]} Bxe1 {[%emt 0:00:13]} 38. a8=Q {[%emt 0:00:10]} 1-0

[Event "35th European Club Cup 2019"]
[Site "Ulcinj"]
[Date "2019.11.15"]
[Round "6.26"]
[White "Alekseev, Evgeny"]
[Black "Paravyan, David"]
[Result "1-0"]
[ECO "C50"]
[WhiteElo "2623"]
[BlackElo "2628"]
[Annotator "ChessBase"]
[PlyCount "109"]
[EventDate "2019.11.10"]
[EventType "team-tourn"]
[EventCountry "MNE"]
[SourceTitle "playchess.com"]
[Source "ChessBase"]
[SourceQuality "1"]
[WhiteTeam "Law & Order"]
[BlackTeam "Molodezka"]
[TimeControl "40/5400+30:1800+30"]

1. e4 {[%emt 0:00:00]} e5 {[%emt 0:00:00]} 2. Nf3 {[%emt 0:00:00]} Nc6 {[%emt 0:00:00]} 3. Bc4 {[%emt 0:00:00]} Nf6 {[%emt 0:00:00]} 4. d3 {[%emt 0:00:00]} Bc5 {[%emt 0:00:00]} 5. O-O {[%emt 0:01:17]} d6 {[%emt 0:00:00]} 6. c3 {[%emt 0:00:40]} a6 {[%emt 0:00:00]} 7. Bb3 {[%emt 0:02:02]} Ba7 {[%emt 0:00:02]} 8. Be3 {[%emt 0:01:17]} Bxe3 {[%emt 0:02:01]} 9. fxe3 {[%emt 0:00:15]} Na5 {[%emt 0:14:20]} 10. Bc2 {[%emt 0:04:32]} c5 {[%emt 0:01:15]} 11. Nbd2 {[%emt 0:02:36]} O-O {[%emt 0:01:21]} 12. a3 {[%emt 0:23:01]} Be6 {[%emt 0:18:55]} 13. b4 {[%emt 0:03:49]} Nc6 {[%emt 0:00:04]} 14. h3 {[%emt 0:02:36]} h6 {[%emt 0:02:02]} 15. Qe1 {[%emt 0:09:58]} Rc8 {[%emt 0:04:44]} 16. Rc1 {[%emt 0:00:47]} Ne7 {[%emt 0:15:23]} 17. Bb1 {[%emt 0:05:43]} Ng6 {[%emt 0:04:42]} 18. d4 {[%emt 0:04:40]} b5 {[%emt 0:06:38]} 19. Nh4 {[%emt 0:08:58]} cxb4 {[%emt 0:08:34]} 20. axb4 {[%emt 0:02:56]} a5 {[%emt 0:05:18]} 21. Bd3 {[%emt 0:09:05]} Nxh4 {[%emt 0:03:12]} 22. Qxh4 {[%emt 0:01:33]} axb4 {[%emt 0:01:36]} 23. cxb4 {[%emt 0:00:43]} Qb6 {[%emt 0:00:14]} 24. Qf2 {[%emt 0:03:24]} Bc4 {[%emt 0:03:02]} 25. Bxc4 {[%emt 0:03:47]} bxc4 {[%emt 0:00:04]} 26. dxe5 {[%emt 0:00:11]} dxe5 {[%emt 0:00:07]} 27. Rxc4 {[%emt 0:01:52]} Rxc4 {[%emt 0:00:10]} 28. Nxc4 {[%emt 0:00:02]} Qxb4 {[%emt 0:07:11]} 29. Nxe5 {[%emt 0:00:06]} Qxe4 {[%emt 0:00:20]} 30. Qf4 {[%emt 0:00:54]} Re8 {[%emt 0:02:42]} 31. Qxe4 {[%emt 0:06:06]} Nxe4 {[%emt 0:00:04]} 32. Nxf7 {[%emt 0:00:27]} Re7 {[%emt 0:00:06]} 33. Nd8 {[%emt 0:00:15]} Nf6 {[%emt 0:01:49]} 34. Re1 {[%emt 0:00:46]} Ne4 {[%emt 0:00:29]} 35. Nc6 {[%emt 0:00:17]} Rc7 {[%emt 0:00:07]} 36. Nd4 {[%emt 0:00:15]} Rc3 {[%emt 0:00:17]} 37. g4 {[%emt 0:00:44]} Rd3 {[%emt 0:00:07]} 38. Kg2 {[%emt 0:00:39]} Ra3 {[%emt 0:01:24]} 39. h4 {[%emt 0:00:33]} Kf7 {[%emt 0:00:37]} 40. Kf3 {[%emt 0:00:00]} Nf6 {[%emt 0:00:00]} 41. Rb1 {[%emt 0:06:32]} Nd5 {[%emt 0:09:07]} 42. Rb3 {[%emt 0:01:38]} Ra7 {[%emt 0:13:06]} 43. e4 {[%emt 0:03:33]} Ne7 {[%emt 0:00:04]} 44. Ke3 {[%emt 0:06:54]} Ng6 {[%emt 0:05:13]} 45. h5 {[%emt 0:01:08]} Ne5 {[%emt 0:00:04]} 46. Kf4 {[%emt 0:00:20]} Nd7 {[%emt 0:02:10]} 47. Rb4 {[%emt 0:04:28]} Nc5 {[%emt 0:02:03]} 48. Rb5 {[%emt 0:00:24]} Nd3+ {[%emt 0:01:30]} 49. Ke3 {[%emt 0:02:12]} Nc1 {[%emt 0:01:04]} 50. e5 {[%emt 0:02:31]} Na2 {[%emt 0:00:06]} 51. e6+ {[%emt 0:01:10]} Kg8 {[%emt 0:00:03]} 52. Nf5 {[%emt 0:01:26]} Ra3+ {[%emt 0:00:51]} 53. Kd2 {[%emt 0:01:50]} Ra8 {[%emt 0:00:51]} 54. e7 {[%emt 0:00:47]} Kf7 {[%emt 0:00:42]} 55. Re5 {[%emt 0:00:11]} 1-0

[Event "35th European Club Cup 2019"]
[Site "Ulcinj"]
[Date "2019.11.15"]
[Round "6.28"]
[White "Kokarev, Dmitry"]
[Black "Yuffa, Daniil"]
[Result "1-0"]
[ECO "A00"]
[WhiteElo "2601"]
[BlackElo "2578"]
[Annotator "ChessBase"]
[PlyCount "131"]
[EventDate "2019.11.10"]
[EventType "team-tourn"]
[EventCountry "MNE"]
[SourceTitle "playchess.com"]
[Source "ChessBase"]
[SourceQuality "1"]
[WhiteTeam "Law & Order"]
[BlackTeam "Molodezka"]
[TimeControl "40/5400+30:1800+30"]

1. g3 {[%emt 0:00:00]} e5 {[%emt 0:00:32]} 2. c4 {[%emt 0:00:00]} Nc6 {[%emt 0:00:20]} 3. Bg2 {[%emt 0:00:00]} Bc5 {[%emt 0:00:43]} 4. Nc3 {[%emt 0:00:00]} d6 {[%emt 0:02:01]} 5. e3 {[%emt 0:00:16]} a6 {[%emt 0:03:41]} 6. Nf3 {[%emt 0:00:22]} Nf6 {[%emt 0:02:50]} 7. O-O {[%emt 0:02:10]} O-O {[%emt 0:01:46]} 8. Qc2 {[%emt 0:07:20]} Be6 {[%emt 0:06:56]} 9. d3 {[%emt 0:06:19]} Qd7 {[%emt 0:07:02]} 10. Ng5 {[%emt 0:03:30]} Bf5 {[%emt 0:01:01]} 11. Nge4 {[%emt 0:01:26]} Nxe4 {[%emt 0:01:45]} 12. dxe4 {[%emt 0:00:10]} Be6 {[%emt 0:02:03]} 13. Nd5 {[%emt 0:06:31]} Nb8 {[%emt 0:05:47]} 14. b3 {[%emt 0:04:55]} c6 {[%emt 0:04:03]} 15. Nc3 {[%emt 0:00:06]} b5 {[%emt 0:00:13]} 16. Rd1 {[%emt 0:00:33]} Qc7 {[%emt 0:05:49]} 17. cxb5 {[%emt 0:09:04]} axb5 {[%emt 0:02:34]} 18. Bd2 {[%emt 0:04:26]} Na6 {[%emt 0:04:30]} 19. a4 {[%emt 0:02:56]} bxa4 {[%emt 0:07:06]} 20. bxa4 {[%emt 0:11:48]} Nb4 {[%emt 0:07:57]} 21. Qb2 {[%emt 0:00:07]} Rfb8 {[%emt 0:02:10]} 22. Rdb1 {[%emt 0:00:16]} h5 {[%emt 0:01:47]} 23. Qc1 {[%emt 0:04:17]} h4 {[%emt 0:03:10]} 24. gxh4 {[%emt 0:01:19]} Qd8 {[%emt 0:02:09]} 25. Ne2 {[%emt 0:01:45]} Qxh4 {[%emt 0:09:44]} 26. Bxb4 {[%emt 0:09:30]} Bxb4 {[%emt 0:00:04]} 27. Qxc6 {[%emt 0:00:29]} Rc8 {[%emt 0:00:11]} 28. Qb5 {[%emt 0:00:27]} Bc5 {[%emt 0:01:10]} 29. Nc1 {[%emt 0:06:24]} g6 {[%emt 0:04:40]} 30. Qe2 {[%emt 0:00:37]} Bg4 {[%emt 0:01:14]} 31. Bf3 {[%emt 0:01:50]} Bh3 {[%emt 0:00:43]} 32. Nb3 {[%emt 0:02:53]} Kg7 {[%emt 0:00:12]} 33. Nd2 {[%emt 0:02:23]} Rh8 {[%emt 0:00:56]} 34. Nf1 {[%emt 0:02:40]} Bxf1 {[%emt 0:01:05]} 35. Kxf1 {[%emt 0:00:05]} Qg5 {[%emt 0:01:13]} 36. Bg2 {[%emt 0:02:04]} Rxh2 {[%emt 0:01:49]} 37. Qf3 {[%emt 0:00:09]} Ra7 {[%emt 0:01:40]} 38. a5 {[%emt 0:00:23]} Rh8 {[%emt 0:01:51]} 39. a6 {[%emt 0:01:45]} Rha8 {[%emt 0:00:04]} 40. Qe2 {[%emt 0:00:00]} Re7 {[%emt 0:00:00]} 41. Ra2 {[%emt 0:04:08]} Re6 {[%emt 0:01:10]} 42. Rb3 {[%emt 0:07:38]} Rf6 {[%emt 0:01:03]} 43. f3 {[%emt 0:00:28]} Qg4 {[%emt 0:08:24]} 44. Ke1 {[%emt 0:01:34]} Qg5 {[%emt 0:02:09]} 45. Kf1 {[%emt 0:03:35]} Qh5 {[%emt 0:02:13]} 46. Ke1 {[%emt 0:03:05]} Qh2 {[%emt 0:02:11]} 47. Kd2 {[%emt 0:03:23]} d5 {[%emt 0:03:58]} 48. exd5 {[%emt 0:04:55]} Rd6 {[%emt 0:00:04]} 49. e4 {[%emt 0:01:43]} Rc8 {[%emt 0:04:50]} 50. Bf1 {[%emt 0:01:53]} Qf4+ {[%emt 0:01:56]} 51. Kd1 {[%emt 0:00:19]} Ba7 {[%emt 0:07:19]} 52. Rc2 {[%emt 0:00:39]} Rdd8 {[%emt 0:01:02]} 53. Rc4 {[%emt 0:01:41]} Rb8 {[%emt 0:01:19]} 54. Kc2 {[%emt 0:01:37]} Rxb3 {[%emt 0:01:18]} 55. Kxb3 {[%emt 0:00:03]} Rb8+ {[%emt 0:00:06]} 56. Rb4 {[%emt 0:00:28]} Rc8 {[%emt 0:00:04]} 57. Rc4 {[%emt 0:00:14]} Rb8+ {[%emt 0:01:08]} 58. Rb4 {[%emt 0:00:07]} Rc8 {[%emt 0:00:02]} 59. Rc4 {[%emt 0:00:06]} Bc5 {[%emt 0:00:35]} 60. a7 {[%emt 0:01:50]} Qf6 {[%emt 0:00:06]} 61. Rxc5 {[%emt 0:00:27]} Rxc5 {[%emt 0:00:06]} 62. a8=Q {[%emt 0:00:17]} Qb6+ {[%emt 0:00:01]} 63. Ka2 {[%emt 0:00:46]} Ra5+ {[%emt 0:00:36]} 64. Qxa5 {[%emt 0:00:09]} Qxa5+ {[%emt 0:00:01]} 65. Kb3 {[%emt 0:00:18]} Qb6+ {[%emt 0:00:04]} 66. Qb5 {[%emt 0:00:08]} 1-0

[Event "35th European Club Cup 2019"]
[Site "Ulcinj"]
[Date "2019.11.15"]
[Round "6.29"]
[White "Antipov, Mikhail Al."]
[Black "Rozum, Ivan"]
[Result "0-1"]
[ECO "B10"]
[WhiteElo "2558"]
[BlackElo "2593"]
[Annotator "ChessBase"]
[PlyCount "80"]
[EventDate "2019.11.10"]
[EventType "team-tourn"]
[EventCountry "MNE"]
[SourceTitle "playchess.com"]
[Source "ChessBase"]
[SourceQuality "1"]
[WhiteTeam "Molodezka"]
[BlackTeam "Law & Order"]
[TimeControl "40/5400+30:1800+30"]

1. e4 {[%emt 0:00:00]} c6 {[%emt 0:00:00]} 2. Nf3 {[%emt 0:00:00]} d5 {[%emt 0:00:00]} 3. d3 {[%emt 0:00:00]} g6 {[%emt 0:01:50]} 4. e5 {[%emt 0:00:00]} Bg7 {[%emt 0:00:34]} 5. h3 {[%emt 0:00:50]} f6 {[%emt 0:02:20]} 6. d4 {[%emt 0:02:17]} fxe5 {[%emt 0:06:40]} 7. Nxe5 {[%emt 0:04:39]} Nd7 {[%emt 0:00:51]} 8. f4 {[%emt 0:01:40]} Nxe5 {[%emt 0:01:21]} 9. dxe5 {[%emt 0:01:26]} Nh6 {[%emt 0:01:33]} 10. a4 {[%emt 0:33:06]} a5 {[%emt 0:23:14]} 11. Ra3 {[%emt 0:01:01]} O-O {[%emt 0:01:54]} 12. Be2 {[%emt 0:14:29]} g5 {[%emt 0:03:06]} 13. O-O {[%emt 0:01:14]} gxf4 {[%emt 0:03:27]} 14. Bxf4 {[%emt 0:01:11]} Qb6+ {[%emt 0:12:02]} 15. Kh1 {[%emt 0:05:38]} Rxf4 {[%emt 0:03:51]} 16. Rxf4 {[%emt 0:00:06]} Qxb2 {[%emt 0:00:21]} 17. Re3 {[%emt 0:17:37]} Nf5 {[%emt 0:07:40]} 18. Ref3 {[%emt 0:04:40]} Qxe5 {[%emt 0:00:17]} 19. Qf1 {[%emt 0:00:12]} Nd6 {[%emt 0:04:32]} 20. Rf8+ {[%emt 0:05:29]} Bxf8 {[%emt 0:00:05]} 21. Rxf8+ {[%emt 0:00:04]} Kg7 {[%emt 0:00:03]} 22. Bd3 {[%emt 0:00:07]} Nf5 {[%emt 0:10:18]} 23. Bxf5 {[%emt 0:00:23]} Kxf8 {[%emt 0:00:04]} 24. Bxc8+ {[%emt 0:00:05]} Qf6 {[%emt 0:02:06]} 25. Qxf6+ {[%emt 0:00:07]} exf6 {[%emt 0:00:04]} 26. Bf5 {[%emt 0:00:07]} Re8 {[%emt 0:02:04]} 27. Kh2 {[%emt 0:05:16]} Re1 {[%emt 0:00:35]} 28. Nd2 {[%emt 0:01:29]} Ra1 {[%emt 0:00:09]} 29. Bc8 {[%emt 0:00:10]} b6 {[%emt 0:06:01]} 30. Bb7 {[%emt 0:00:35]} Ra2 {[%emt 0:01:17]} 31. Nb3 {[%emt 0:00:55]} Rxc2 {[%emt 0:00:20]} 32. Nd4 {[%emt 0:00:04]} Rc4 {[%emt 0:00:07]} 33. Nxc6 {[%emt 0:00:04]} Rxa4 {[%emt 0:00:38]} 34. Na7 {[%emt 0:01:11]} d4 {[%emt 0:00:45]} 35. Ba6 {[%emt 0:00:21]} Ra1 {[%emt 0:01:15]} 36. Nc6 {[%emt 0:00:30]} Rd1 {[%emt 0:00:30]} 37. Be2 {[%emt 0:00:24]} Rd2 {[%emt 0:00:27]} 38. Bb5 {[%emt 0:00:06]} d3 {[%emt 0:00:45]} 39. Nd4 {[%emt 0:01:21]} Rd1 {[%emt 0:00:51]} 40. Kg3 {[%emt 0:00:00]} d2 {[%emt 0:00:00]} 0-1

[Event "35th European Club Cup 2019"]
[Site "Ulcinj"]
[Date "2019.11.15"]
[Round "6.30"]
[White "Sychev, Klementy"]
[Black "Kryakvin, Dmitry"]
[Result "1-0"]
[ECO "C11"]
[WhiteElo "2578"]
[BlackElo "2605"]
[Annotator "ChessBase"]
[PlyCount "87"]
[EventDate "2019.11.10"]
[EventType "team-tourn"]
[EventCountry "MNE"]
[SourceTitle "playchess.com"]
[Source "ChessBase"]
[SourceQuality "1"]
[WhiteTeam "Law & Order"]
[BlackTeam "Molodezka"]
[TimeControl "40/5400+30:1800+30"]

1. e4 {[%emt 0:00:00]} e6 {[%emt 0:00:00]} 2. d4 {[%emt 0:00:00]} d5 {[%emt 0:00:00]} 3. Nc3 {[%emt 0:01:13]} Nf6 {[%emt 0:00:00]} 4. e5 {[%emt 0:06:17]} Nfd7 {[%emt 0:00:20]} 5. Nce2 {[%emt 0:00:22]} c5 {[%emt 0:00:40]} 6. c3 {[%emt 0:00:03]} Nc6 {[%emt 0:00:43]} 7. Nf3 {[%emt 0:00:04]} Qa5 {[%emt 0:08:29]} 8. a3 {[%emt 0:00:35]} Be7 {[%emt 0:07:31]} 9. Rb1 {[%emt 0:14:13]} c4 {[%emt 0:19:01]} 10. Nf4 {[%emt 0:20:04]} b5 {[%emt 0:08:50]} 11. h4 {[%emt 0:03:44]} Qa4 {[%emt 0:07:37]} 12. Qxa4 {[%emt 0:05:47]} bxa4 {[%emt 0:00:06]} 13. Be2 {[%emt 0:03:37]} Na5 {[%emt 0:08:43]} 14. Bd1 {[%emt 0:00:52]} Nb3 {[%emt 0:01:28]} 15. Be3 {[%emt 0:00:16]} Rb8 {[%emt 0:01:40]} 16. Bc2 {[%emt 0:01:05]} Nb6 {[%emt 0:00:40]} 17. Nh5 {[%emt 0:10:46]} Bf8 {[%emt 0:04:05]} 18. Ng5 {[%emt 0:03:22]} h6 {[%emt 0:02:55]} 19. Nh7 {[%emt 0:00:48]} Nd7 {[%emt 0:00:06]} 20. Nxf8 {[%emt 0:00:07]} Kxf8 {[%emt 0:00:13]} 21. g4 {[%emt 0:00:11]} g6 {[%emt 0:03:53]} 22. Ng3 {[%emt 0:00:10]} Kg7 {[%emt 0:02:34]} 23. f4 {[%emt 0:03:04]} f6 {[%emt 0:00:23]} 24. h5 {[%emt 0:03:32]} g5 {[%emt 0:02:45]} 25. exf6+ {[%emt 0:05:05]} Nxf6 {[%emt 0:00:06]} 26. fxg5 {[%emt 0:00:09]} Nxg4 {[%emt 0:03:52]} 27. gxh6+ {[%emt 0:00:06]} Rxh6 {[%emt 0:00:03]} 28. Bxh6+ {[%emt 0:00:35]} Kxh6 {[%emt 0:00:04]} 29. Rf1 {[%emt 0:02:41]} e5 {[%emt 0:01:38]} 30. Rf8 {[%emt 0:04:38]} exd4 {[%emt 0:00:49]} 31. Bf5 {[%emt 0:00:14]} Rb7 {[%emt 0:02:03]} 32. Bxc8 {[%emt 0:00:54]} Re7+ {[%emt 0:01:19]} 33. Kf1 {[%emt 0:00:08]} Nd2+ {[%emt 0:04:47]} 34. Kg1 {[%emt 0:00:04]} Ne3 {[%emt 0:00:56]} 35. Re1 {[%emt 0:01:43]} Rg7 {[%emt 0:01:52]} 36. Kh2 {[%emt 0:00:23]} Re7 {[%emt 0:03:30]} 37. Kh3 {[%emt 0:02:01]} dxc3 {[%emt 0:00:13]} 38. bxc3 {[%emt 0:00:11]} d4 {[%emt 0:00:02]} 39. cxd4 {[%emt 0:01:12]} c3 {[%emt 0:00:02]} 40. Rf6+ {[%emt 0:00:00]} Kg5 {[%emt 0:00:00]} 41. Rg6+ {[%emt 0:02:14]} Kf4 {[%emt 0:01:44]} 42. Ne2+ {[%emt 0:00:41]} Ke4 {[%emt 0:01:30]} 43. Nxc3+ {[%emt 0:02:03]} Kxd4 {[%emt 0:00:07]} 44. Nd1 {[%emt 0:01:19]} 1-0